bitfinex-derivatives/quotes_ETHF0:USTF0_20241023
["timestamp","ask_amount","ask_price","bid_price","bid_amount"]
[1729707135533,0.40345,2481.3,2481.1,0.40346]
[1729707135835,7.53735455,2481.2,2480.4,3.2078]
[1729707136038,7.53735455,2481.2,2480.5,4.87891]
[1729707136039,4.32955455,2481.2,2480.5,4.87891]
[1729707136337,3.87,2481.5,2480.8,0.40351]
[1729707136338,3.2078,2481.3,2480.8,0.40351]
[1729707136525,0.4035,2480.9,2480.7,0.40352]
[1729707136723,0.4035,2480.9,2480.6,0.40353]
[1729707136927,4.36642375,2480.8,2480.7,0.40352]
[1729707137329,4.26485814,2480.9,2480.5,7.0778]
[1729707137629,0.4035,2480.9,2480.7,0.40353]
[1729707137830,4.26485814,2480.9,2480.6,40.8]
[1729707138331,4.26485814,2480.9,2480.8,0.40351]
[1729707140235,4.26485814,2480.9,2480.8,4.43471]
[1729707140540,3.2078,2481.0,2480.9,0.4035]
[1729707140931,7.63502517,2481.0,2480.9,0.4035]
[1729707142035,7.63502517,2481.0,2480.7,3.87]
[1729707142336,7.63502517,2481.0,2480.6,40.8]
[1729707142640,3.2078,2481.4,2481.3,0.40343]
[1729707142937,1.00824,2482.2,2481.2,10.08842]
[1729707142938,4.32488727,2481.5,2481.2,10.08842]
[1729707143141,4.32488727,2481.6,2481.4,3.87]
[1729707143432,7.53268727,2482.1,2481.4,3.87]
[1729707143433,3.2078,2482.1,2482.0,0.40332]
[1729707143636,3.2078,2482.4,2482.3,0.40327]
[1729707143830,3.2078,2482.4,2482.3,40.8]
[1729707144031,10.9478339,2482.4,2481.4,1.00851]
[1729707144243,10.9478339,2482.4,2481.8,0.40335]
[1729707144244,3.2078,2481.9,2481.8,0.40335]
[1729707144436,3.2078,2481.9,2481.8,40.8]
[1729707144739,8.11584091,2481.9,2481.8,40.8]
[1729707145537,7.71250091,2481.9,2481.8,40.8]
[1729707145735,8.11584091,2481.9,2481.8,40.8]
[1729707147038,7.71250091,2481.9,2481.8,41.20335]
[1729707147242,3.2078,2481.9,2481.8,41.20335]
[1729707147431,3.2078,2481.9,2481.8,49.10295]
[1729707147639,0.40327,2482.3,2482.2,0.40329]
[1729707147843,0.4033,2482.2,2482.1,0.4033]
[1729707148041,4.38971559,2482.3,2481.8,45.07335]
[1729707148234,4.38971559,2482.2,2481.8,45.07335]
[1729707148543,4.38971559,2482.3,2482.2,0.40329]
[1729707148746,3.61107,2482.4,2481.9,1.00835]
[1729707148940,3.61107,2482.4,2482.2,0.40328]
[1729707148941,0.40327,2482.3,2482.2,0.40328]
[1729707149135,4.83328118,2482.3,2482.2,0.40328]
[1729707149337,0.40329,2482.2,2481.8,44.67]
[1729707149539,3.61114,2482.0,2481.9,0.40333]
[1729707150050,0.40334,2481.9,2481.8,41.20334]
[1729707150248,3.2078,2482.0,2481.8,40.8]
[1729707150549,3.2078,2482.0,2481.9,0.40334]
[1729707150550,7.43430315,2482.0,2481.9,0.40334]
[1729707150739,7.43430315,2482.0,2481.8,40.8]
[1729707150740,7.43430315,2482.0,2481.8,41.20335]
[1729707151050,7.43430315,2482.0,2481.8,40.8]
[1729707151351,7.83763315,2482.0,2481.9,0.40334]
[1729707151647,7.43430315,2482.0,2481.8,41.20334]
[1729707152147,3.2078,2482.3,2482.2,0.40329]
[1729707152337,3.2078,2482.3,2481.8,44.67]
[1729707152338,3.2078,2482.3,2482.0,3.87]
[1729707152537,3.2078,2482.3,2481.9,0.40333]
[1729707152538,0.40331,2482.1,2481.9,0.40333]
[1729707152842,7.88435492,2482.3,2482.2,0.40329]
[1729707153243,8.28763492,2482.3,2482.2,0.40329]
[1729707153441,7.88435492,2482.3,2482.2,0.40329]
[1729707153643,7.88435492,2482.3,2482.2,4.27329]
[1729707153837,7.88435492,2482.3,2482.2,8.30209]
[1729707153838,4.67655492,2482.3,2482.2,8.30209]
[1729707154038,3.2078,2482.6,2482.5,0.40324]
[1729707154244,3.2078,2482.6,2482.5,3.87]
[1729707154546,3.2078,2482.6,2482.5,4.27324]
[1729707154750,3.2078,2482.6,2482.5,3.87]
[1729707154943,3.2078,2482.6,2482.5,4.27324]
[1729707155146,3.61102,2482.6,2482.5,4.27324]
[1729707155345,3.2078,2482.6,2482.5,4.27324]
[1729707155546,3.2078,2482.6,2482.5,8.30124]
[1729707155747,12.58313,2483.1,2482.5,8.30124]
[1729707155951,3.2078,2482.9,2482.8,0.40319]
[1729707156153,3.2078,2482.9,2482.8,2.40519]
[1729707156349,12.58313,2483.1,2482.8,9.2378]
[1729707156549,12.58313,2483.1,2483.0,0.40316]
[1729707156744,12.58313,2483.1,2483.0,4.43036]
[1729707156947,3.49313,2483.1,2483.0,8.30036]
[1729707157144,3.2078,2483.7,2483.6,0.40306]
[1729707157359,3.2078,2483.7,2483.6,6.27506]
[1729707157648,0.40303,2483.8,2483.7,0.40304]
[1729707157846,0.40302,2483.9,2483.8,0.40303]
[1729707158154,4.7247307,2483.9,2483.7,0.40303]
[1729707158457,4.7247307,2483.9,2483.8,0.40303]
[1729707158458,4.3217107,2483.9,2483.8,0.40303]
[1729707158655,0.40301,2483.9,2483.7,0.40303]
[1729707158849,3.2078,2484.0,2483.7,0.40303]
[1729707159050,0.40302,2483.9,2483.7,0.40303]
[1729707159446,3.2078,2484.0,2483.9,0.40301]
[1729707159653,3.2078,2484.0,2483.9,4.27301]
[1729707159853,3.2078,2484.0,2483.9,7.8956]
[1729707159854,3.61079,2484.0,2483.9,7.8956]
[1729707160053,3.61079,2484.0,2483.9,3.87]
[1729707160258,0.40299,2484.0,2483.9,3.87]
[1729707160454,3.2078,2484.3,2483.9,4.27301]
[1729707160654,0.40299,2484.0,2483.9,3.87]
[1729707161153,0.40299,2484.0,2483.9,5.795]
[1729707161560,0.40298,2484.1,2483.9,7.8956]
[1729707161757,3.2078,2484.3,2484.0,1.925]
[1729707161958,0.40298,2484.1,2484.0,1.925]
[1729707162262,4.95010802,2484.2,2484.1,0.40298]
[1729707162461,5.02094555,2484.2,2484.1,0.40298]
[1729707162655,4.54713802,2484.2,2484.1,0.40298]
[1729707163055,3.2078,2484.3,2484.1,4.0256]
[1729707163256,3.2078,2484.3,2484.2,4.27296]
[1729707163455,3.2078,2484.6,2484.2,3.87]
[1729707163649,3.2078,2484.6,2484.5,3.87]
[1729707163854,3.6107,2484.6,2484.3,46.594]
[1729707164160,3.6107,2484.6,2484.4,1.924]
[1729707164161,3.2078,2484.6,2484.4,1.924]
[1729707164355,3.6107,2484.6,2484.4,2.32692]
[1729707164661,3.2078,2484.6,2484.5,6.19691]
[1729707165158,1.00703,2485.2,2484.5,6.19691]
[1729707165159,3.2078,2485.2,2484.5,10.22171]
[1729707165357,3.2078,2485.2,2485.1,4.27282]
[1729707165562,3.2078,2485.2,2485.1,8.29682]
[1729707165862,3.34950203,2485.2,2485.1,8.29682]
[1729707166055,3.27865112,2485.2,2485.1,8.29682]
[1729707166262,3.27865112,2485.2,2485.1,7.894]
[1729707166561,3.27865112,2485.2,2485.1,8.29682]
[1729707167061,2.6227,2486.2,2485.1,8.29682]
[1729707167062,3.2078,2485.5,2485.1,8.29682]
[1729707167269,3.2078,2485.5,2485.4,4.27277]
[1729707167457,3.2078,2485.5,2485.4,46.99677]
[1729707167653,3.2078,2485.8,2485.4,50.6172]
[1729707167853,3.2078,2485.8,2485.7,0.40272]
[1729707168260,3.2078,2485.8,2485.6,0.40272]
[1729707168460,3.2078,2485.8,2485.7,3.87]
[1729707168657,3.6105,2485.8,2485.7,3.87]
[1729707169558,3.6105,2485.8,2485.7,5.793]
[1729707170254,8.27504871,2485.8,2485.7,5.793]
[1729707170665,3.6105,2485.8,2485.7,6.19572]
[1729707170960,3.2078,2485.8,2485.7,9.8162]
[1729707171258,3.2078,2485.8,2485.7,3.87]
[1729707171259,3.6105,2485.8,2485.7,3.87]
[1729707171460,3.6105,2485.8,2485.7,5.793]
[1729707172258,3.6105,2485.8,2485.7,3.87]
[1729707172462,3.6105,2485.8,2485.7,5.793]
[1729707172666,3.2078,2485.8,2485.7,6.19572]
[1729707172863,3.6105,2485.8,2485.7,5.793]
[1729707173556,3.2078,2485.8,2485.7,5.793]
[1729707173854,3.2078,2485.8,2485.7,10.21892]
[1729707174263,3.2078,2485.8,2485.7,6.19572]
[1729707174464,3.26303229,2485.8,2485.7,6.19572]
[1729707175057,3.26303229,2485.8,2485.7,4.27272]
[1729707175259,11.91049327,2485.8,2485.2,3.87]
[1729707175565,3.2078,2485.3,2484.8,1.923]
[1729707175755,0.40284,2485.0,2484.7,7.0778]
[1729707175956,3.2078,2485.3,2484.8,2.32585]
[1729707175957,0.40283,2485.1,2484.8,2.32585]
[1729707176162,0.40283,2485.1,2484.9,0.40284]
[1729707176363,0.45807229,2485.0,2484.8,2.32586]
[1729707176660,0.05523229,2485.0,2484.9,0.40285]
[1729707177256,0.05523229,2485.0,2484.9,1.923]
[1729707177463,0.05523229,2485.0,2484.9,2.32585]
[1729707177869,0.05523229,2485.0,2484.9,6.34985]
[1729707178665,0.05523229,2485.0,2484.9,4.42685]
[1729707178966,0.05523229,2485.0,2484.9,6.34985]
[1729707180272,0.05523229,2485.0,2484.9,4.42685]
[1729707180468,0.05523229,2485.0,2484.9,5.947]
[1729707180664,0.05523229,2485.0,2484.9,4.42685]
[1729707180865,0.05523229,2485.0,2484.9,6.34985]
[1729707182173,0.05523229,2485.0,2484.9,3.87]
[1729707182371,0.05523229,2485.0,2484.9,4.27285]
[1729707182867,3.6106,2485.2,2484.9,4.27285]
[1729707182868,3.2078,2485.2,2484.9,8.29685]
[1729707183074,3.87,2486.8,2484.9,8.29685]
[1729707183075,3.2078,2485.6,2485.1,3.87]
[1729707183273,3.2078,2485.6,2485.5,3.87]
[1729707183475,7.86539557,2485.6,2485.5,3.87]
[1729707183668,3.61053,2485.6,2485.5,3.87]
[1729707184075,3.2078,2485.6,2485.5,3.87]
[1729707184275,0.40271,2485.8,2485.6,0.40272]
[1729707184468,0.40271,2485.8,2485.7,3.87]
[1729707184979,0.40272,2485.7,2485.6,1.923]
[1729707185169,4.42592,2485.7,2485.6,1.923]
[1729707185470,8.44377727,2485.7,2485.3,7.0778]
[1729707185673,0.40277,2485.4,2485.3,3.87]
[1729707186064,8.84654727,2485.4,2485.3,3.87]
[1729707186269,4.82334727,2485.4,2485.3,4.27278]
[1729707186667,4.82334727,2485.4,2485.3,3.87]
[1729707187871,8.84654727,2485.4,2485.3,3.87]
[1729707188873,4.42057727,2485.4,2485.3,4.27278]
[1729707189076,4.82334727,2485.4,2485.3,4.27278]
[1729707189280,4.21461,2485.7,2485.3,3.87]
[1729707189281,3.2078,2485.7,2485.3,3.87]
[1729707189576,4.95193824,2485.6,2485.5,3.87]
[1729707189981,8.97513824,2485.6,2485.2,3.87]
[1729707190171,4.95193824,2485.6,2485.2,3.87]
[1729707190371,0.40278,2485.3,2485.2,4.2728]
[1729707190977,0.40278,2485.3,2485.2,3.87]
[1729707191177,0.40278,2485.3,2485.2,4.2728]
[1729707191573,0.40278,2485.4,2485.3,0.40277]
[1729707191967,4.81497473,2485.4,2485.3,0.40277]
[1729707192573,4.81496473,2485.4,2485.3,0.40277]
[1729707192774,4.41219473,2485.4,2485.3,0.40277]
[1729707193071,0.4027,2485.9,2485.8,0.40269]
[1729707193273,5.6319,2486.0,2485.6,3.87]
[1729707193475,4.70645988,2485.9,2485.8,0.40269]
[1729707193677,4.30375988,2485.9,2485.8,0.40269]
[1729707194176,4.70644988,2485.9,2485.8,0.40269]
[1729707194580,4.30375988,2485.9,2485.8,0.40269]
[1729707195375,4.61597452,2486.1,2486.0,0.40267]
[1729707195584,2.4101,2486.2,2486.0,3.87]
[1729707195885,2.81275,2486.2,2486.1,0.40265]
[1729707197176,0.40265,2486.1,2486.0,4.27266]
[1729707199985,0.40267,2486.0,2485.9,3.2078]
[1729707200186,7.41962803,2486.1,2485.6,1.901]
[1729707200385,0.40272,2485.7,2485.6,1.901]
[1729707200786,0.40272,2485.7,2485.6,2.30373]
[1729707202906,0.40277,2485.4,2485.3,3.87]
[1729707203296,4.64278074,2485.4,2485.3,3.87]
[1729707204201,4.64278074,2485.4,2485.1,46.31162]
[1729707204202,0.4028,2485.2,2485.1,46.31162]
[1729707204505,0.4028,2485.2,2485.1,44.41062]
[1729707204701,0.4028,2485.2,2485.1,46.31162]
[1729707204899,4.24001074,2485.4,2485.1,45.9088]
[1729707205096,4.21458,2485.8,2485.6,0.40272]
[1729707205097,0.40273,2485.7,2485.6,0.40272]
[1729707205297,0.4027,2485.8,2485.7,4.2727]
[1729707206294,0.4027,2485.9,2485.8,0.40269]
[1729707206704,4.81318756,2485.9,2485.8,0.40269]
[1729707207211,2.4101,2486.2,2485.9,0.40266]
[1729707207212,0.40268,2486.0,2485.9,0.40266]
[1729707207599,4.97054365,2486.0,2485.9,0.40266]
[1729707207799,0.40268,2486.0,2485.9,0.40266]
[1729707208393,0.40267,2486.1,2486.0,0.40265]
[1729707208703,2.4101,2486.2,2486.1,0.40264]
[1729707208704,0.40265,2486.2,2486.1,0.40264]
[1729707209998,3.2078,2486.6,2486.0,7.0778]
[1729707210208,3.61038,2486.6,2486.5,4.27259]
[1729707210504,8.24716082,2486.6,2486.5,4.27259]
[1729707210700,4.63678082,2486.6,2486.5,8.29419]
[1729707211007,3.61031,2487.0,2486.9,0.40252]
[1729707211208,3.2078,2487.0,2486.9,0.40252]
[1729707211802,0.40248,2487.2,2487.1,0.40248]
[1729707212613,3.61027,2487.3,2487.2,0.40248]
[1729707212809,3.61022,2487.6,2487.1,3.87]
[1729707213013,3.61022,2487.6,2487.5,4.27243]
[1729707213216,3.2078,2487.6,2487.5,4.27243]
[1729707213706,3.61021,2487.6,2487.5,3.87]
[1729707213901,0.40243,2487.5,2487.4,2.30344]
[1729707214105,7.49116167,2487.6,2487.5,0.40243]
[1729707214301,7.49116167,2487.6,2487.5,4.27243]
[1729707214706,7.89357167,2487.6,2487.5,4.27243]
[1729707214908,7.49116167,2487.6,2487.5,4.27243]
[1729707215814,3.2078,2488.2,2487.5,11.0978]
[1729707216008,0.40237,2487.9,2487.8,4.27238]
[1729707216515,0.40237,2487.9,2487.8,45.07238]
[1729707216902,0.40237,2487.9,2487.8,44.67]
[1729707217216,0.40237,2487.9,2487.5,2.30243]
[1729707217217,0.40241,2487.6,2487.5,2.30243]
[1729707217410,0.40241,2487.6,2487.5,1.9]
[1729707217812,0.40244,2487.5,2487.3,3.87]
[1729707218010,0.40244,2487.5,2487.4,1.9]
[1729707218216,7.83525976,2487.9,2487.4,1.9]
[1729707218511,7.83525976,2487.9,2487.3,3.87]
[1729707218512,0.40244,2487.4,2487.3,3.87]
[1729707218714,0.40244,2487.4,2487.3,4.27246]
[1729707219107,0.40244,2487.4,2487.3,3.87]
[1729707219512,3.2078,2487.9,2487.3,3.87]
[1729707219715,0.40244,2487.4,2487.3,3.87]
[1729707220023,4.29950003,2487.4,2486.8,3.2078]
[1729707220313,4.29950003,2487.4,2486.5,3.2078]
[1729707220314,0.40257,2486.6,2486.5,3.2078]
[1729707220725,4.8656687,2486.6,2486.5,3.2078]
[1729707220915,0.40257,2486.6,2486.5,3.2078]
[1729707221813,4.0216,2486.6,2486.1,3.2078]
[1729707222123,0.40264,2486.2,2486.1,3.61045]
[1729707222319,0.40264,2486.2,2486.1,3.2078]
[1729707222816,0.47295158,2486.2,2486.1,3.2078]
[1729707223510,0.07031158,2486.2,2486.1,11.50285]
[1729707223715,0.47294158,2486.3,2486.2,0.40264]
[1729707224012,0.07030324,2486.3,2486.2,0.40264]
[1729707224413,0.07030324,2486.3,2486.1,7.0778]
[1729707224414,4.88384512,2486.5,2486.4,0.40261]
[1729707224613,4.48124512,2486.5,2486.4,0.40261]
[1729707224818,4.55155693,2486.5,2486.4,4.42421]
[1729707225021,3.2078,2486.9,2486.4,7.8916]
[1729707225321,3.2078,2486.9,2486.4,3.87]
[1729707225322,4.62329043,2486.8,2486.4,3.87]
[1729707225617,0.40257,2486.6,2486.5,0.40259]
[1729707225815,0.47288383,2486.6,2486.5,0.40259]
[1729707226011,5.02586043,2486.6,2486.5,0.40259]
[1729707226211,5.02586043,2486.6,2486.3,1.896]
[1729707226212,4.62329043,2486.6,2486.3,1.896]
[1729707226413,0.40261,2486.4,2486.3,2.29862]
[1729707226721,0.40264,2486.3,2486.2,0.40263]
[1729707226916,0.47295383,2486.3,2486.2,0.40263]
[1729707227416,0.40264,2486.2,2486.1,9.37644]
[1729707227613,0.47295383,2486.2,2486.1,9.37644]
[1729707227812,0.07031383,2486.2,2486.1,8.9738]
[1729707228022,0.40264,2486.2,2486.1,46.96865]
[1729707228221,0.47295383,2486.2,2486.1,42.696]
[1729707228519,0.47289179,2486.2,2486.1,40.8]
[1729707228720,0.07025179,2486.2,2485.9,1.896]
[1729707228917,0.07025179,2486.2,2486.1,4.27265]
[1729707229125,0.07025179,2486.3,2486.1,47.8778]
[1729707229322,0.07025179,2486.2,2486.1,48.28045]
[1729707229521,0.07025179,2486.2,2486.1,47.8778]
[1729707229721,0.40263,2486.3,2486.2,0.40263]
[1729707229917,0.07025265,2486.3,2486.2,0.40263]
[1729707230120,0.47287265,2486.4,2486.2,0.40264]
[1729707230321,0.47288265,2486.3,2486.2,0.40264]
[1729707230924,0.40263,2486.3,2486.2,0.40264]
[1729707231225,0.40262,2486.4,2486.3,0.40262]
[1729707231724,0.40264,2486.2,2486.1,45.07265]
[1729707232024,5.29279212,2486.5,2486.2,0.40263]
[1729707232025,0.40263,2486.3,2486.2,0.40263]
[1729707232227,0.40264,2486.2,2486.1,45.07265]
[1729707233115,0.40264,2486.2,2486.1,44.67]
[1729707233321,1.00653,2486.4,2486.0,1.897]
[1729707233524,0.40265,2486.1,2486.0,1.897]
[1729707233718,0.40267,2486.1,2486.0,0.40266]
[1729707233918,0.40267,2486.1,2486.0,41.20266]
[1729707234629,0.40267,2486.1,2486.0,40.8]
[1729707235024,0.40267,2486.1,2486.0,41.20267]
[1729707235329,0.40267,2486.1,2486.0,40.8]
[1729707235727,0.40267,2486.1,2486.0,41.20267]
[1729707236532,4.52814961,2486.3,2486.0,40.8]
[1729707236825,0.40265,2486.2,2486.1,0.40265]
[1729707237027,0.40265,2486.2,2486.1,4.27265]
[1729707237329,0.40265,2486.2,2486.1,3.87]
[1729707237825,0.40265,2486.2,2486.1,4.27265]
[1729707238925,2.6006,2486.5,2486.1,3.87]
[1729707239128,0.4026,2486.5,2486.4,0.40259]
[1729707239327,3.2078,2486.9,2486.3,7.0778]
[1729707239530,0.40255,2486.8,2486.7,4.27254]
[1729707239733,4.67769206,2486.8,2486.7,4.27254]
[1729707239936,4.27514206,2486.8,2486.7,4.27254]
[1729707240136,3.2078,2486.9,2486.8,0.40254]
[1729707240432,3.61034,2486.9,2486.8,0.40254]
[1729707241731,2.4488,2487.3,2486.7,5.767]
[1729707241936,2.4488,2487.3,2486.9,3.2078]
[1729707242134,4.68306123,2487.1,2487.0,0.4025]
[1729707242334,0.40251,2487.1,2487.0,0.4025]
[1729707242931,0.40251,2487.0,2486.9,3.61031]
[1729707243132,2.4488,2487.3,2486.5,3.2078]
[1729707243327,0.40256,2486.7,2486.6,2.29956]
[1729707243527,4.27350885,2487.2,2486.8,0.40253]
[1729707243528,0.40254,2486.9,2486.8,0.40253]
[1729707243733,0.40257,2486.6,2486.5,3.2078]
[1729707244140,8.22916161,2486.6,2486.2,3.2078]
[1729707244438,0.40264,2486.2,2486.1,1.896]
[1729707244843,0.40263,2486.3,2486.2,0.40263]
[1729707245433,4.55376393,2486.5,2486.3,0.40262]
[1729707245642,0.40261,2486.4,2486.3,0.40262]
[1729707247137,4.92535745,2486.6,2486.5,0.40259]
[1729707248744,0.4026,2486.5,2486.4,0.4026]
[1729707249639,4.52276745,2486.6,2486.2,8.9738]
[1729707249935,0.40262,2486.3,2486.2,3.2078]
[1729707250137,0.40265,2486.1,2486.0,3.87]
[1729707250533,0.40264,2486.2,2486.1,0.40265]
[1729707250935,0.40265,2486.1,2486.0,4.27266]
[1729707251148,0.40265,2486.1,2486.0,3.87]
[1729707252342,0.40272,2485.7,2485.6,3.2078]
[1729707252741,0.40272,2485.7,2485.6,44.0078]
[1729707252944,0.40272,2485.7,2485.6,3.2078]
[1729707252945,4.66047234,2485.7,2485.6,3.2078]
[1729707253143,8.28095234,2485.7,2485.4,3.2078]
[1729707253347,0.40275,2485.5,2485.4,44.0078]
[1729707254143,4.0232,2485.5,2485.0,3.2078]
[1729707254443,0.40282,2485.1,2485.0,3.2078]
[1729707254649,0.40282,2485.1,2485.0,44.0078]
[1729707255047,8.51497,2485.8,2485.6,0.40273]
[1729707255048,0.40273,2485.7,2485.6,0.40273]
[1729707255543,0.40274,2485.6,2485.5,0.40275]
[1729707255751,0.40277,2485.4,2485.3,7.48057]
[1729707255938,0.40274,2485.6,2485.5,0.40275]
[1729707256138,3.2078,2485.8,2485.3,8.9688]
[1729707256337,3.2078,2485.8,2485.3,7.0778]
[1729707256649,0.40275,2485.5,2485.4,2.29377]
[1729707257040,0.40275,2485.5,2485.4,6.31697]
[1729707257439,0.40277,2485.4,2485.3,3.2078]
[1729707257647,0.40277,2485.4,2485.2,3.61059]
[1729707257853,0.40278,2485.3,2485.2,3.61059]
[1729707258247,4.47567532,2485.5,2485.2,3.61059]
[1729707258547,0.40277,2485.4,2485.3,2.29378]
[1729707259739,4.87843532,2485.5,2485.3,1.891]
[1729707259941,4.87843532,2485.5,2485.4,0.40277]
[1729707260145,4.47567532,2485.5,2485.3,1.891]
[1729707260354,4.87843532,2485.5,2485.4,0.40277]
[1729707260953,4.87843532,2485.5,2485.3,1.891]
[1729707261149,4.47567532,2485.5,2485.3,1.891]
[1729707261353,4.47567532,2485.5,2485.4,0.40277]
[1729707261354,4.87842532,2485.5,2485.4,0.40277]
[1729707262251,4.87843532,2485.5,2485.3,2.29377]
[1729707262451,4.87843532,2485.5,2485.4,0.40277]
[1729707263752,4.87842532,2485.5,2485.4,0.40277]
[1729707264156,4.47567532,2485.5,2485.3,1.891]
[1729707264557,4.87843532,2485.5,2485.4,0.40277]
[1729707264952,2.5505,2486.2,2485.4,7.8932]
[1729707265157,0.4027,2485.9,2485.8,3.2078]
[1729707265353,0.4027,2485.8,2485.7,3.6105]
[1729707265556,0.4027,2485.8,2485.7,0.4027]
[1729707265757,0.4027,2485.8,2485.7,3.6105]
[1729707266760,2.5505,2486.2,2485.7,3.2078]
[1729707267059,0.4027,2485.9,2485.8,0.4027]
[1729707267263,0.4027,2485.8,2485.7,3.61051]
[1729707267756,0.40272,2485.7,2485.6,3.61053]
[1729707267959,1.00673,2485.9,2485.5,3.2078]
[1729707268158,4.62104149,2485.7,2485.1,3.2078]
[1729707268363,0.4028,2485.2,2485.1,3.2078]
[1729707269062,1.00684,2485.6,2485.1,3.2078]
[1729707269267,0.40277,2485.4,2485.3,0.40278]
[1729707269450,4.28302934,2485.5,2485.1,3.2078]
[1729707269654,0.40279,2485.3,2485.2,0.40279]
[1729707269857,1.00681,2485.7,2485.1,3.2078]
[1729707270056,4.68581934,2485.3,2485.2,0.40279]
[1729707270263,0.40279,2485.3,2485.2,0.40279]
[1729707270565,4.59854843,2485.3,2485.2,0.40279]
[1729707270866,4.59854843,2485.3,2485.2,0.4028]
[1729707272164,4.59854843,2485.3,2485.1,3.6106]
[1729707272165,0.4028,2485.2,2485.1,3.6106]
[1729707272462,4.67793128,2485.2,2485.1,3.6106]
[1729707272662,8.70193128,2485.2,2485.1,3.6106]
[1729707272862,8.70193128,2485.2,2485.1,3.2078]
[1729707273157,4.67793128,2485.2,2485.1,3.61062]
[1729707273362,8.70193128,2485.2,2485.0,40.8]
[1729707273671,8.70193128,2485.2,2484.6,3.2078]
[1729707273672,0.40284,2484.7,2484.6,3.2078]
[1729707273859,1.00704,2484.9,2484.3,5.5017]
[1729707274061,0.40288,2484.5,2484.3,5.5017]
[1729707274263,0.40287,2484.6,2484.4,0.40288]
[1729707274563,4.67042609,2484.4,2484.3,5.50169]
[1729707274858,0.40288,2484.5,2484.3,5.50169]
[1729707275062,0.40289,2484.4,2484.3,44.0078]
[1729707275263,5.07331609,2484.4,2484.3,44.0078]
[1729707275466,0.40289,2484.5,2484.3,44.41071]
[1729707275763,4.64460365,2484.4,2484.3,44.41071]
[1729707276164,0.40288,2484.5,2484.4,0.40289]
[1729707276559,0.40288,2484.5,2484.3,44.0078]
[1729707276560,4.80298295,2484.5,2484.3,44.41069]
[1729707276759,0.40288,2484.5,2484.4,0.40289]
[1729707276960,0.40289,2484.4,2484.3,46.3017]
[1729707277162,0.40289,2484.5,2484.3,46.3017]
[1729707277363,1.00707,2484.8,2484.3,46.3017]
[1729707277364,0.40289,2484.4,2484.3,46.3017]
[1729707277569,0.40288,2484.5,2484.3,46.3017]
[1729707277770,0.40289,2484.4,2484.3,46.3017]
[1729707278376,0.40289,2484.4,2484.3,45.8988]
[1729707278871,0.40289,2484.4,2484.3,46.30171]
[1729707279566,1.00712,2484.7,2484.3,45.8988]
[1729707279863,4.42276194,2484.6,2484.4,4.27288]
[1729707280064,4.42276194,2484.6,2484.4,4.27289]
[1729707280273,0.40287,2484.6,2484.5,0.40287]
[1729707280661,4.75284783,2484.6,2484.5,0.40287]
[1729707280966,4.34997783,2484.6,2484.4,3.87]
[1729707281361,0.40287,2484.5,2484.4,4.27288]
[1729707281562,3.2078,2484.9,2484.4,3.87]
[1729707281769,3.2078,2485.5,2484.7,3.87]
[1729707282066,0.40279,2485.0,2484.9,3.61061]
[1729707283075,0.40279,2485.0,2484.9,3.2078]
[1729707283372,0.40279,2485.0,2484.9,3.61061]
[1729707283572,0.40279,2485.0,2484.9,3.2078]
[1729707286272,0.40279,2485.0,2484.9,3.61061]
[1729707286664,0.40279,2485.0,2484.9,3.2078]
[1729707287173,0.40279,2485.0,2484.9,3.61061]
[1729707287667,0.40279,2485.0,2484.9,3.2078]
[1729707287874,0.40279,2485.0,2484.9,3.61061]
[1729707288581,4.21461,2485.5,2484.9,3.2078]
[1729707288766,0.40277,2485.2,2485.1,0.40276]
[1729707288974,4.82811476,2485.2,2485.1,0.40276]
[1729707289277,0.40277,2485.2,2485.1,0.40276]
[1729707289475,5.03470766,2485.2,2485.1,0.40276]
[1729707289771,4.21443,2485.9,2485.6,0.40268]
[1729707289976,3.2078,2485.9,2485.5,3.14]
[1729707290269,5.03462766,2485.6,2485.5,3.5427]
[1729707290478,4.63193766,2485.8,2485.5,43.94]
[1729707290777,0.40269,2485.7,2485.6,0.40268]
[1729707291172,4.66197167,2485.7,2485.6,0.40268]
[1729707291475,4.66197167,2485.7,2485.5,43.94]
[1729707291476,0.40269,2485.6,2485.5,44.3427]
[1729707292077,4.25928167,2485.7,2485.5,43.94]
[1729707292275,4.66196167,2485.7,2485.6,0.40269]
[1729707292471,0.40268,2485.7,2485.6,0.40269]
[1729707292670,0.40269,2485.6,2485.5,44.3427]
[1729707293381,0.40269,2485.6,2485.5,40.8]
[1729707293978,4.53592013,2485.7,2485.4,0.40272]
[1729707294169,0.40271,2485.5,2485.4,0.40272]
[1729707294371,0.40271,2485.5,2485.1,1.00694]
[1729707294372,0.40276,2485.2,2485.1,1.885]
[1729707294770,0.40276,2485.2,2484.5,9.16786]
[1729707294771,0.40281,2484.9,2484.5,9.16786]
[1729707294974,0.40286,2484.6,2484.5,5.0918]
[1729707295172,0.40286,2484.6,2484.5,3.2078]
[1729707295380,4.98232318,2484.6,2484.5,3.2078]
[1729707295577,9.00712318,2484.6,2484.5,3.2078]
[1729707296077,4.98232318,2484.6,2484.5,3.2078]
[1729707296267,9.00712318,2484.6,2484.5,3.2078]
[1729707297274,4.98232318,2484.6,2484.5,3.2078]
[1729707300283,0.40287,2484.5,2484.4,0.11350374]
[1729707300474,0.40287,2484.5,2483.0,3.2078]
[1729707300475,0.40305,2483.5,2483.0,3.2078]
[1729707300674,3.2078,2483.8,2483.1,3.87]
[1729707300874,3.2078,2483.8,2483.2,40.8]